Cogmind - Beta 17.1 @@@ ROGUE MODE // 2026.09.20 @ 09:14:45 Player: Miniluz Result: Destroyed by as-83183 with Assembled Blade Performance ------------- Evolutions (0) 0 Regions Visited (2) 400 Robots Destroyed (17) 85 Value Destroyed (425) 425 Prototype IDs (0) 0 Alien Tech Used (0) 0 Bonus (0) 0 TOTAL SCORE: 910 Bonus ------- None Cogmind --------- Core Integrity 0/250 Matter 176/300 Energy 99/100 System Corruption 0% Temperature Cool (0) Movement Walking (120) Location -10/Mines Parts ------- > --- POWER (1) -------- (None) > --- PROPULSION (2) --- Aluminum Leg > --- UTILITY (2) ------ Small Storage Unit Visual Processing Unit > --- WEAPON (2) ------- Autogun > --- INVENTORY (8) ---- Ion Engine Medium Matter Pod (33) Peak State ------------ > --- POWER ------------ Light Nuclear Core > --- PROPULSION ------- Aluminum Leg Aluminum Leg > --- UTILITY ---------- Heat Sink Visual Processing Unit > --- WEAPON ----------- Autogun Autogun > --- INVENTORY -------- Ion Engine Ion Engine Aluminum Leg EM Pulse Gun Grenade Launcher [Rating: 12] Favorites ----------- Power Light Ion Engine Engine Light Ion Engine Power Core Light Nuclear Core Propulsion Aluminum Leg Leg Aluminum Leg Utility Heat Sink Device Heat Sink Storage Small Storage Unit Processor Visual Processing Unit Weapon Autogun Energy Gun EM Pulse Gun Ballistic Gun Autogun Launcher Grenade Launcher Build | -11 -10 -10 ------- Run | Yrd Mat Min Slots Evolved . | . . . Power . | . . . Propulsion . | . . . Utility . | . . . Weapon . | . . . Parts Attached 22 | 7 14 1 Power 4 | 1 3 . Engine 3 | 1 2 . Core 1 | . 1 . Reactor . | . . . Propulsion 9 | 3 5 1 Treads . | . . . Leg 9 | 3 5 1 Wheel . | . . . Hover . | . . . Flight . | . . . Utility 3 | 1 2 . Device 1 | 1 . . Storage 1 | . 1 . Processor 1 | . 1 . Hackware . | . . . Protection . | . . . Artifact . | . . . Weapon 6 | 2 4 . Energy Gun 2 | 2 . . Energy Cannon . | . . . Ballistic Gun 3 | . 3 . Ballistic Cannon . | . . . Launcher 1 | . 1 . Special Weapon . | . . . Impact Weapon . | . . . Slashing Weapon . | . . . Piercing Weapon . | . . . Special Melee Weapon . | . . . Unidentified Prototypes . | . . . Parts Lost 6 | . . 6 Power 1 | . . 1 Propulsion 2 | . . 2 Utility . | . . . Weapon 3 | . . 3 Highest Loss Streak 6 | . . 6 To Critical Strikes . | . . . Average Backups 3 | . 4 3 Power 1 | . 1 1 Propulsion . | . 1 . Utility . | . . 1 Weapon 1 | . 2 . Tool/Special . | . . . Unused Backups 2 | . . 2 Power 1 | . . 1 Propulsion . | . . . Utility 1 | . . 1 Weapon . | . . . Tool/Special . | . . . Average Slot Usage (%) 90 | . 91 79 Engine 7 | . 7 . Core 6 | . 5 10 Leg 27 | . 28 20 Device 7 | . 7 . Storage 6 | . 5 14 Processor 6 | . 6 14 Energy Gun 3 | . 3 2 Ballistic Gun 20 | . 20 16 Launcher 4 | . 4 2 Peak Build Rating 12 | 6 12 12 Average Rating 8 | 4 9 8 On Entrance 6 | . 6 12 Avg Prop Armor Cover (%) . | . . . Naked Turns . | . . . Heaviest Build 16 | 8 16 16 Greatest Support 20 | 20 20 20 Greatest Overweight (x) 1 | . . 1 Average Overweight (x) . | . . . Largest Inventory Capacity 8 | 5 8 8 Average Capacity 6 | 5 6 8 Most Carried 5 | 2 5 5 Average Carried 3 | . 4 3 Final Capacity 8 | 5 8 8 Final Carried 5 | 2 5 2 Class Distribution -------------------- 62% | Mutant 37% | Scavenger-Mutant Dominant Class ---------------- Mutant | -10/Materials Mutant | -10/Mines Resources | -11 -10 -10 ----------- Run | Yrd Mat Min Matter Collected 650 | 250 397 3 Remotely . | . . . Salvage Created 582 | 57 474 51 Parts 38 | 3 35 . Haulers Intercepted . | . . . Recyclers Shooed . | . . . Parts Field Recycled . | . . . Retrieved Matter . | . . . Parts Self-Destructed . | . . . Prevented . | . . . Parts Restored . | . . . Kills | -11 -10 -10 ------- Run | Yrd Mat Min Combat Hostiles Destroyed 26 | 1 9 16 Guns 13 | 1 9 3 AOE 13 | . . 13 Classes Destroyed 6 | 2 3 1 Worker 3 | 1 2 . Builder 1 | . 1 . Recycler 1 | . 1 . Watcher 2 | . 2 . Grunt 10 | 1 9 . Assembled 16 | . . 16 Best Kill Streak 16 | 1 3 16 Combat Bots Only 16 | 1 3 16 Max Kills in Single Turn 4 | 1 1 4 Gunslinging 1 | . . 1 Exploded 4 | . . 4 Melee . | . . . Uniques/NPCs Destroyed . | . . . Combat | -11 -10 -10 -------- Run | Yrd Mat Min Hostile Shots Fired 107 | 4 43 60 Missed 35 | . 17 18 Hits 72 | 4 26 42 Melee 13 | . . 13 Projectile 59 | 4 26 29 Damage Taken 1156 | 47 326 783 Core 269 | . 71 198 Absorbed by Shields . | . . . Regen/Repaired (Parts) 33 | . 33 . Core Remaining (%) 100 | 100 . . Volleys Fired 63 | 8 38 17 Largest 2 | 2 2 2 Hottest 80 | 80 70 63 Shots Fired 119 | 16 76 27 Gun 114 | 16 75 23 Cannon . | . . . Launcher 5 | . 1 4 Special . | . . . Kinetic 91 | . 74 17 Thermal . | . . . Explosive 5 | . 1 4 Electromagnetic 23 | 16 1 6 Robot Hit Streak 16 | 2 16 5 Robot Miss Streak 6 | 6 4 3 Penetration Max . | . . . Secondary Targets 2 | . 1 1 Max Gunslinging Chain 1 | . 1 1 Shots Hit Robots 79 | 5 57 17 Core Hits 56 | 2 23 31 Critical Kills . | . . . Critical Parts Destroyed 1 | . . 1 Critical Strikes 1 | . . 1 Destroy 1 | . . 1 Melee Attacks . | . . . Impact . | . . . Slashing . | . . . Piercing . | . . . Sneak Attacks . | . . . Combat Hostiles . | . . . Follow-up Attacks . | . . . Damage Inflicted 2109 | 73 909 1127 Guns 1193 | 73 893 227 Cannons . | . . . Explosions 916 | . 16 900 Melee . | . . . Ramming . | . . . Kinetic 1078 | . 893 185 Thermal . | . . . Explosive 916 | . 16 900 Electromagnetic 115 | 73 . 42 Impact . | . . . Slashing . | . . . Piercing . | . . . Highest Corruption . | . . . Average Corruption . | . . . Corruption Purged . | . . . Corruption Blocked . | . . . Overload Shots . | . . . Overflow Damage 39 | . . 39 Projectiles . | . . . Explosions 39 | . . 39 Melee . | . . . Knockbacks . | . . . Impact . | . . . Kinetic . | . . . Secondary . | . . . Self-Inflicted Damage 38 | . . 38 Shots 2 | . . 2 Rammed . | . . . Targets Rammed 1 | . 1 . Kicked 1 | . 1 . Crushed . | . . . Highest Temperature 78 | 78 20 72 Average Temperature 24 | 32 7 26 Received Heat Transfer 324 | 24 180 120 Siege Activations . | . . . Martial Activations . | . . . Shielding Activations . | . . . Robots Disrupted . | . . . Combat Hostiles . | . . . Robots Corrupted . | . . . Combat Hostiles . | . . . Parts Fried . | . . . Impact Corruptions . | . . . Robots Melted . | . . . Combat Hostiles . | . . . Parts Melted . | . . . Heat Transferred . | . . . Parts Sabotaged . | . . . Parts Stolen . | . . . Parts Stripped . | . . . Power Chain Reactions . | . . . Alert | -11 -10 -10 ------- Run | Yrd Mat Min Maximum Alert Level . | . . . Low Security (%) 100 | 100 100 100 Level 1 . | . . . Level 2 . | . . . Level 3 . | . . . Level 4 . | . . . Level 5 . | . . . High Security . | . . . Max Security . | . . . Peak Influence 164 | 20 164 36 Initial 16 | . 6 16 Average 46 | 1 54 8 Influence Increases 379 | 25 331 23 Destroy 0b10 Robot/C 200 | 20 180 . Destroy 0b10 Robot/NC 35 | 5 30 . Destroy Leader 44 | . 44 . Successful Hack 24 | . 24 . Destroy Structure 31 | . 8 23 Lose Combat Pursuer 45 | . 45 . Influence Decreases 379 | 15 298 66 Entered New Map 31 | . 4 27 Time Decay 319 | 15 294 10 Lost Part 29 | . . 29 Squads Dispatched 2 | . 2 . Investigation 2 | . 2 . Extermination . | . . . Reinforcement . | . . . Assault . | . . . Garrison . | . . . Intercept . | . . . Searches Triggered . | . . . Construction Impeded . | . . . Haulers Reinforced . | . . . Active Scanning Responses . | . . . Cargo Convoy Interrupts . | . . . Stealth | -11 -10 -10 --------- Run | Yrd Mat Min Distress Signals 2 | . 2 . Communications Jammed . | . . . Distress Signals . | . . . Times Spotted 37 | 1 15 21 Peak Tracking Total 18 | 1 3 18 Tactical Retreats 4 | . 3 1 Traps | -11 -10 -10 ------- Run | Yrd Mat Min Traps Triggered 1 | . 1 . Indirectly . | . . . Trap Hack Attempts . | . . . Triggered . | . . . Disarmed . | . . . Reprogrammed . | . . . Reused . | . . . Traps Extracted . | . . . Installed . | . . . Triggered . | . . . Machines | -11 -10 -10 ---------- Run | Yrd Mat Min Machines Disabled . | . . . Max in Single Turn . | . . . Machines Repaired . | . . . Machines Dismantled . | . . . Machines Sabotaged . | . . . Overloaded Fab Kills . | . . . Hacking | -11 -10 -10 --------- Run | Yrd Mat Min Machines Accessed 7 | . 7 . Terminals 4 | . 4 . Fabricators . | . . . Repair Stations 1 | . 1 . Recycling Units 2 | . 2 . Scanalyzers . | . . . Garrison Access . | . . . Total Hacks 25 | . 25 . Successful 9 | . 9 . Failed 16 | . 16 . Catastrophic 2 | . 2 . Database Lockouts . | . . . Manual 7 | . 7 . Terminals 16 | . 16 . Fabricators . | . . . Repair Stations 3 | . 3 . Recycling Units 6 | . 6 . Scanalyzers . | . . . Garrison Access . | . . . Terminal Hacks 4 | . 4 . Robot Analysis 2 | . 2 . Level Access Points 1 | . 1 . Branch Access Points 1 | . 1 . Fabricator Hacks . | . . . Repair Station Hacks 2 | . 2 . Scan Component 1 | . 1 . Repair 1 | . 1 . Recycling Unit Hacks 3 | . 3 . Report Inventory 1 | . 1 . Retrieve Matter 1 | . 1 . Retrieve Components 1 | . 1 . Scanalyzer . | . . . Garrison Access Hacks . | . . . Unauthorized Hacks . | . . . Terminals . | . . . Fabricators . | . . . Repair Stations . | . . . Recycling Units . | . . . Scanalyzers . | . . . Garrison Access . | . . . Data Cores Recovered . | . . . Used . | . . . Hacking Detections 6 | . 6 . Full Trace Events 1 | . 1 . Feedback Events . | . . . Feedback Blocked . | . . . Robot Schematics Acquired . | . . . Robots Built . | . . . Authchips . | . . . Time . | . . . Total Robot Build Rating . | . . . Part Schematics Acquired . | . . . Parts Built . | . . . Authchips . | . . . Time . | . . . Total Part Build Rating . | . . . Part Studies Acquired . | . . . Parts Repaired 1 | . 1 . Time 38 | . 38 . Parts Recycled . | . . . Recycled Matter . | . . . Retrieved Matter 87 | . 87 . Retrieved Components 9 | . 9 . Parts Scanalyzed . | . . . Part Schematics Acquired . | . . . Parts Damaged . | . . . Bothacking | -11 -10 -10 ------------ Run | Yrd Mat Min Used RIF Installer . | . . . Robots Hacked . | . . . Non-combat . | . . . Combat . | . . . Robot Hacks Applied . | . . . Relay Couplers Released . | . . . Fabnet Peak Effective % . | . . . Robots Rewired . | . . . Allies Hacked . | . . . Hacks Repelled . | . . . Allies | -11 -10 -10 -------- Run | Yrd Mat Min Total Allies . | . . . Largest Group . | . . . Highest-Rated Group . | . . . Highest-Rated Ally . | . . . Total Orders . | . . . Ally Attacks . | . . . Total Damage . | . . . Kills . | . . . Allies Corrupted . | . . . Allies Melted . | . . . Intel | -11 -10 -10 ------- Run | Yrd Mat Min Active Infowar (turns) 551 | . 488 63 Optics 551 | . 488 63 Robot Analysis Total 2 | . 2 . Derelict Logs Recovered . | . . . Drone Launches . | . . . Drone Recoveries . | . . . Exploration | -11 -10 -10 ------------- Run | Yrd Mat Min Turns Passed 1288 | 155 1070 63 Spaces Moved 693 | 109 572 12 Core 17 | 17 . . Treads . | . . . Legs 676 | 92 572 12 Wheels . | . . . Hover . | . . . Flight . | . . . Fastest Speed 50 | 50 120 120 Average Speed 118 | 109 120 131 Slowest Speed 190 | 120 120 190 Overloaded Moves . | . . . Propulsion Burnouts . | . . . Robots Hopped . | . . . Potential Cave-ins . | . . . Cave-ins Triggered . | . . . Exploration Rate (%) 30 | 5 79 7 Regions Visited 2 Branch Regions 1 Pre-discovered Areas . | . . . Known Exits Taken 1 | . 1 . Unknown Exits Taken 1 | 1 . . Scrap Searched . | . . . Spaces Dug . | . . . Terrain Destroyed 34 | . 7 27 Melee . | . . . Projectile . | . . . AOE 34 | . 7 27 Terrain Rammed . | . . . Walls Destroyed . | . . . Machines Disabled . | . . . Actions | -11 -10 -10 --------- Run | Yrd Mat Min Total 1058 | 126 896 36 Wait 251 | . 251 . Move 691 | 108 571 12 Hop . | . . . Pick Up 9 | 3 6 . Fast Attach 13 | 5 5 3 Attach 1 | 1 . . Detach 2 | . 2 . Swap 12 | 1 10 1 Drop 15 | . 12 3 Fire 63 | 8 38 17 Melee . | . . . Ram . | . . . Kick 1 | . 1 . Crush . | . . . Escape Stasis . | . . . Rewire . | . . . Trap . | . . . Miscellaneous . | . . . Route ------- -11/Scrapyard -10/Materials (discovered 5 exits: *Mat x3 / *Min x2) -10/Mines History --------- Turn | Location | Event 2 | -11/Scrapyard | Met Revision 17 125 | -11/Scrapyard | Discovered new exit (range 8) 156 | -11/Scrapyard | Entered Materials 306 | -10/Materials | Build established: Mutant 773 | -10/Materials | Discovered new exit (range 18) 818 | -10/Materials | Discovered new exit (range 9) 970 | -10/Materials | Discovered new exit (range 18) 1010 | -10/Materials | Build established: Scavenger-Mutant 1063 | -10/Materials | Repaired Lgt. Nuclear Core 1109 | -10/Materials | Identified exit to Materials 1142 | -10/Materials | Identified exit to Mines 1226 | -10/Materials | Entered Mines 1227 | -10/Mines | Assembled infested the area 1253 | -10/Mines | Core integrity fell below 50% 1270 | -10/Mines | Core integrity fell below 20% 1289 | -10/Mines | Destroyed by as-83183 with Assembled Blade Last Messages --------------- 01251_ Dropped Autogun. 01252_ Dropped Aluminum Leg. 01252_ Dropped EM Pulse Gun. 01254_ Acquired Aluminum Leg. 01255_ The unstable cave ceiling collapses. 01256_ Aluminum Leg destroyed. 01257_ Acquired Autogun. [Achievement: There's More Where That Came From] 01259_ as-59580 destroyed. 01260_ Acquired 3 matter. 01260_ Lgt. Nuclear Core destroyed. 01261_ Acquired EM Pulse Gun. 01263_ as-91694 destroyed. 01263_ Switching to secondary target: as-18407. 01263_ as-18407 destroyed. [Achievement: Exterminator] 01274_ as-90890 destroyed. 01279_ EM Pulse Gun destroyed. 01281_ as-83183 suffers critical hit (Destroy). 01281_ Destroyed Asb. Hover Unit. Map ----- +----------------------------------------------------+ | ?????????????????????????????????????????? | | ?????????????????????????????????????????? | | ?????????????????????????????????????????? | | ?????????????????????????????????????????? | | ?????????????????????????????????????????? | | ?????????????????????????????????????????? | | ?????????????????????????????????????????? | | ?????????????????????????????????????????? | | ?????????????????????????????????????????? | | ?????????????????????????????????????????? | | ?????????????????????????????????????????? | | ?????????????????????????????????????????? | | ?????????????????????????????????????????? | | ?????????????????????????????????????????? | | ?????????????????????????????????????????? | | ?????????????????????????????????????????? | | ?????????????????????????????????????????? | | ?????????????????????????????????????????? | | ?????????????????????????????????????????? | | ?????????????????????????????????????????? | | ?????????????????????????????????????????? | | ???????????????#????????####?????????????? | | ??????????????## ####### ##????????????? | | ?????????????## < # #????????????? | | ???????????### % #????????????? | | ???????????# @###????????????? | | ???????? % a#??????????????? | | ???????? ## % #??????????????? | | ?????????##????## ##?????????????? | | ???????????????## ###???????????? | | ????????????????##### # #???????????? | | ???????????????????# #???????????? | | ??????????????????# #???????????? | | ?????????????? ######???????????? | | ?????????? #?????????????????? | | ????????? #####??????????????????? | | ?????????? ## #???????????????????????? | | ????????????#####????????????????????????? | | ?????????????????????????????????????????? | | | | | | | | | | | | | | | | | | | | | | | +----------------------------------------------------+ Best States ------------- Heat Dissipation 35 Energy Generation 14 Energy Capacity 250 Matter Stores 300 Matter Capacity 300 Sight Range 18 Terrain Scan Density 10 Evasion (%) 55 Item Schematics ----------------- None Robot Schematics ------------------ None Fabricated ------------ Nothing Repaired ---------- Lgt. Nuclear Core | 34% | -10/Materials Studied --------- None Alien Tech Used ----------------- None Achievements -------------- DATA ERROR: Steam Global Achievement% Exterminator For Emergencies Only Organ Harvest Overwhelming Spot Them First There's More Where That Came From Challenges ------------ None Game ------ Seed HardlightPulsarField Manual? 0 Play Time 00:23:36 Cumulative 3.1 hours Start 2026.09.20 @ 08:41:20 End 2026.09.20 @ 09:14:45 Sessions 4 Manual Loads 0 Difficulty Rogue Special Mode None Game No. 4 Rogue 4 Adventurer 0 Explorer 0 Win Type - Total 0 Types 0/0/0/0/0/0/0/0/0/0 Lore% 7 Gallery% 7 Achievement% 7 Wizard Run 0 Options --------- Layout 0 ASCII 0 Keyboard 0 Movement Mouse Keybinds 0 Fullscreen 2 Font 24/Terminus Map View 76x50 Zoom Use 0% Tactical HUD 1 Map Filters NONE Filters NONE Steam 1 RUN: 0bcac8e5-b76f-4e05-a588-a8289dc0943b